bitfinex-derivatives/quotes_BNBF0:USTF0_20250609
["timestamp","ask_amount","ask_price","bid_price","bid_amount"]
[1749486288641,1.048,658.31,657.71,2.26056521]
[1749486289043,1.048,658.31,657.7,2.26056521]
[1749486289546,1.048,658.31,657.72,2.26056521]
[1749486289746,1.048,658.31,657.71,2.26056521]
[1749486290247,1.048,658.31,657.72,2.26056521]
[1749486291450,1.048,658.31,657.73,2.26056521]
[1749486292549,1.048,658.31,657.76,2.26056521]
[1749486292751,1.048,658.31,657.73,2.26056521]
[1749486293445,1.048,658.31,657.75,2.26056521]
[1749486294451,1.048,658.31,657.76,2.26056521]
[1749486295452,1.048,658.31,657.77,2.26056521]
[1749486296450,1.048,658.31,657.8,2.26056521]
[1749486297349,1.048,658.31,657.78,2.26056521]
[1749486297550,1.048,658.31,657.81,2.26056521]
[1749486297753,1.048,658.31,657.79,2.26056521]
[1749486297950,0.26443568,658.32,657.79,2.26056521]
[1749486298751,0.26443568,658.32,657.8,2.26056521]
[1749486299651,0.26443568,658.32,657.81,2.26056521]
[1749486300449,0.26443568,658.32,657.79,2.26056521]
[1749486300853,0.26443568,658.32,657.8,2.26056521]
[1749486301157,0.26443568,658.32,657.81,2.26056521]
[1749486301758,1.037,658.31,657.82,2.26056521]
[1749486302654,1.037,658.31,657.81,2.26056521]
[1749486302856,1.037,658.31,657.82,2.26056521]
[1749486303256,1.037,658.31,657.83,2.26056521]
[1749486303455,1.037,658.31,657.85,2.26056521]
[1749486303660,1.037,658.31,657.81,2.26056521]
[1749486304158,1.037,658.31,657.82,2.26056521]
[1749486304461,1.037,658.31,657.81,2.26056521]
[1749486304663,1.037,658.31,657.84,2.26056521]
[1749486305258,1.037,658.31,657.85,2.26056521]
[1749486305662,1.037,658.31,657.86,2.26056521]
[1749486306262,1.037,658.31,657.85,2.26056521]
[1749486306558,1.037,658.31,657.86,2.26056521]
[1749486306762,1.037,658.31,657.85,2.26056521]
[1749486306958,1.037,658.31,657.84,2.26056521]
[1749486307159,1.037,658.31,657.86,2.26056521]
[1749486307463,1.037,658.31,657.87,2.26056521]
[1749486309165,1.037,658.31,657.89,2.26056521]
[1749486310365,1.037,658.31,657.88,2.26056521]
[1749486310665,1.037,658.31,657.92,2.26056521]
[1749486311265,1.037,658.31,657.94,2.26056521]
[1749486312267,1.037,658.31,657.93,2.26056521]
[1749486312867,1.037,658.31,657.92,2.26056521]
[1749486313766,1.037,658.31,657.95,2.26056521]
[1749486313966,1.037,658.31,657.78,2.26056521]
[1749486314268,1.037,658.31,657.8,2.26056521]
[1749486314569,1.037,658.31,657.79,2.26056521]
[1749486315068,1.037,658.31,657.8,2.26056521]
[1749486315268,1.037,658.31,657.79,2.26056521]
[1749486316265,1.037,658.31,657.8,2.26056521]
[1749486316467,1.037,658.31,657.79,2.26056521]
[1749486316868,1.037,658.31,657.8,2.26056521]
[1749486317068,1.037,658.31,657.79,2.26056521]
[1749486317769,0.26439048,658.41,657.79,2.26056521]
[1749486317969,0.26439048,658.41,657.78,2.26056521]
[1749486318168,0.26439048,658.41,657.77,2.26056521]
[1749486320269,0.26439048,658.41,657.76,2.26056521]
[1749486320470,0.26439048,658.41,657.75,2.26056521]
[1749486320870,1.057,658.4,657.75,2.26056521]
[1749486321269,1.057,658.4,657.8,2.26056521]
[1749486322673,1.057,658.4,657.83,2.26056521]
[1749486324770,1.057,658.4,657.84,2.26056521]
[1749486325377,1.057,658.4,657.85,2.26056521]
[1749486326373,1.057,658.4,657.87,2.26056521]
[1749486327773,1.057,658.4,657.86,2.26056521]
[1749486329075,1.057,658.4,657.85,2.26056521]
[1749486329378,1.057,658.4,657.82,2.26056521]
[1749486330180,1.057,658.4,657.86,2.26056521]
[1749486330380,1.057,658.4,657.87,2.26056521]
[1749486330580,1.057,658.4,657.86,2.26056521]
[1749486330779,1.057,658.4,657.87,2.26056521]
[1749486331078,1.057,658.4,657.79,2.26056521]
[1749486331577,1.057,658.4,657.78,2.26056521]
[1749486332281,1.057,658.4,657.77,2.26056521]
[1749486332981,1.057,658.4,657.75,2.26056521]
[1749486333884,1.057,658.4,657.73,2.26056521]
[1749486334080,1.057,658.4,657.69,2.26056521]
[1749486334281,1.057,658.4,657.71,2.26056521]
[1749486334485,1.057,658.4,657.69,2.26056521]
[1749486335081,1.057,658.4,657.68,2.26056521]
[1749486336181,1.057,658.4,657.77,2.26056521]
[1749486336583,1.057,658.4,657.79,2.26056521]
[1749486340282,1.057,658.4,657.21,3.77535433]
[1749486340283,1.057,658.4,657.81,2.26056521]
[1749486340484,1.057,658.4,657.82,2.26056521]
[1749486341585,1.057,658.4,657.83,2.26056521]
[1749486342088,1.057,658.4,657.87,2.26056521]
[1749486342290,1.057,658.4,657.89,2.26056521]
[1749486343087,1.057,658.4,657.9,2.26056521]
[1749486343588,1.057,658.4,656.65,7.55070866]
[1749486343589,1.057,658.4,657.91,2.26056521]
[1749486344189,1.057,658.4,657.09,5.28549606]
[1749486344190,1.057,658.4,657.93,2.26056521]
[1749486344789,1.057,658.4,657.94,2.26056521]
[1749486346093,1.057,658.4,657.95,2.26056521]
[1749486346294,1.057,658.4,657.93,2.26056521]
[1749486347097,1.057,658.4,657.92,2.26056521]
[1749486347797,1.057,658.4,657.94,2.26056521]
[1749486348897,1.057,658.4,657.95,2.26056521]
[1749486350101,1.057,658.4,657.93,2.26056521]
[1749486351301,1.057,658.4,657.94,2.26056521]
[1749486351601,1.057,658.4,657.9,2.26056521]
[1749486351800,1.057,658.4,657.91,2.26056521]
[1749486351999,1.057,658.4,657.92,2.26056521]
[1749486352304,1.057,658.4,657.93,2.26056521]
[1749486352799,1.057,658.4,657.91,2.26056521]
[1749486355906,1.057,658.4,657.92,2.26056521]
[1749486358104,1.057,658.4,657.95,2.26056521]
[1749486358504,1.057,658.4,657.96,2.26056521]
[1749486359102,1.057,658.4,657.95,2.26056521]
[1749486359510,1.057,658.4,657.96,2.26056521]
[1749486360003,1.057,658.4,657.95,2.26056521]
[1749486361610,1.057,658.4,657.94,2.26056521]
[1749486361804,1.057,658.4,657.95,2.26056521]
[1749486362706,1.057,658.4,657.96,2.26056521]
[1749486363406,1.057,658.4,657.97,2.26056521]
[1749486366212,1.057,658.4,657.77,2.26056521]
[1749486368213,1.057,658.4,657.78,2.26056521]
[1749486371114,0.26439048,658.41,657.78,2.26056521]
[1749486375114,1.613,658.4,657.78,2.26056521]
[1749486376019,1.613,658.4,657.96,2.26056521]
[1749486377316,1.613,658.4,657.92,2.26056521]
[1749486377718,1.613,658.4,657.91,2.26056521]
[1749486379018,1.613,658.4,657.92,2.26056521]
[1749486380623,1.613,658.4,657.91,2.26056521]
[1749486381217,1.613,658.4,657.28,3.77535433]
[1749486381218,1.613,658.4,658.0,2.26056521]
[1749486381721,1.613,658.4,657.99,2.26056521]
[1749486381923,1.613,658.4,657.64,2.26056521]
[1749486382120,1.613,658.4,657.45,3.77535433]
[1749486382121,1.613,658.4,657.57,2.26056521]
[1749486382318,1.613,658.4,657.56,2.26056521]
[1749486382519,1.613,658.4,657.55,2.26056521]
[1749486382919,1.613,658.4,657.54,2.26056521]
[1749486383119,1.613,658.4,657.9,2.26056521]
[1749486383323,1.613,658.4,657.91,2.26056521]
[1749486384722,1.613,658.4,657.88,2.26056521]
[1749486386331,1.613,658.4,657.09,5.28549606]
[1749486386332,1.613,658.4,657.87,2.26056521]
[1749486387730,1.613,658.4,657.86,2.26056521]
[1749486388231,0.26439048,658.41,657.87,2.26056521]
[1749486388528,0.26439048,658.41,657.88,2.26056521]
[1749486389227,0.26439048,658.41,657.87,2.26056521]
[1749486390431,1.601,658.4,657.87,2.26056521]
[1749486391228,1.601,658.4,657.86,2.26056521]
[1749486392231,1.601,658.4,657.87,2.26056521]
[1749486393528,1.601,658.4,657.86,2.26056521]
[1749486394527,1.601,658.4,657.88,2.26056521]
[1749486395928,1.601,658.4,657.86,2.26056521]
[1749486396833,1.601,658.4,657.84,2.26056521]
[1749486397530,1.601,658.4,657.85,2.26056521]
[1749486398231,1.601,658.4,657.81,2.26056521]
[1749486399027,1.601,658.4,657.79,2.26056521]
[1749486399231,1.601,658.4,657.76,2.26056521]
[1749486399533,2.66137184,658.4,657.76,2.26056521]
[1749486399833,1.601,658.4,657.75,2.26056521]
[1749486400133,2.66134972,658.4,657.75,2.26056521]
[1749486400535,2.66134972,658.4,657.76,2.26056521]
[1749486401331,2.66134972,658.4,657.75,2.26056521]
[1749486401634,2.66134972,658.4,657.76,2.26056521]
[1749486403036,2.66134972,658.4,657.75,2.26056521]
[1749486403335,2.66134972,658.4,657.72,2.26056521]
[1749486403933,2.66134972,658.4,657.65,2.26056521]
[1749486404132,2.66134972,658.4,657.64,2.26056521]
[1749486405234,2.66134972,658.4,657.63,2.26056521]
[1749486406338,2.66134972,658.4,657.62,2.26056521]
[1749486406738,2.66134972,658.4,657.63,2.26056521]
[1749486407238,2.66134972,658.4,657.62,2.26056521]
[1749486407637,1.06034972,658.4,657.62,2.26056521]
[1749486407934,0.26439048,658.41,657.62,2.26056521]
[1749486409340,0.26439048,658.41,657.61,2.26056521]
[1749486409938,0.26439048,658.41,657.58,2.26056521]
[1749486410146,0.26439048,658.41,657.59,2.26056521]
[1749486410342,0.26439048,658.41,657.65,2.26056521]
[1749486410845,0.26439048,658.41,657.63,2.26056521]
[1749486411048,1.424,658.4,657.59,2.26056521]
[1749486411247,2.48434972,658.4,657.59,2.26056521]
[1749486411448,2.7382546,658.39,657.59,2.26056521]
[1749486411648,1.67468475,658.38,657.6,2.26056521]
[1749486411849,2.20477565,658.39,657.6,2.26056521]
[1749486412048,1.06034972,658.39,657.6,2.26056521]
[1749486412347,1.06034972,658.39,657.59,2.26056521]
[1749486412348,0.52965459,658.39,657.59,2.26056521]
[1749486412853,1.58996653,658.39,657.61,2.26056521]
[1749486413351,2.73444029,658.39,657.61,2.26056521]
[1749486413647,1.14447376,658.38,657.61,2.26056521]
[1749486414052,1.06034972,658.39,657.58,2.26056521]
[1749486414247,1.67410012,658.39,657.58,2.26056521]
[1749486414451,2.73444984,658.39,657.57,2.26056521]
[1749486414648,1.06034972,658.39,657.58,2.26056521]
[1749486414848,1.06034972,658.39,657.57,2.26056521]
[1749486415053,1.424,658.4,657.57,2.26056521]
[1749486415249,1.424,658.4,657.56,2.26056521]
[1749486415454,1.424,658.4,657.57,2.26056521]
[1749486415854,1.424,658.4,657.61,2.26056521]
[1749486416353,1.424,658.4,657.6,2.26056521]
[1749486416851,1.424,658.4,657.62,2.26056521]
[1749486417956,1.424,658.4,657.61,2.26056521]
[1749486419152,1.424,658.4,657.59,2.26056521]
[1749486419355,1.424,658.4,657.58,2.26056521]
[1749486419658,1.424,658.4,657.59,2.26056521]
[1749486419857,1.424,658.4,657.58,2.26056521]
[1749486420154,1.424,658.4,657.59,2.26056521]
[1749486421356,1.424,658.4,657.6,2.26056521]
[1749486421559,1.424,658.4,657.59,2.26056521]
[1749486422458,1.424,658.4,657.58,2.26056521]
[1749486423857,1.424,658.4,657.59,2.26056521]
[1749486424256,1.424,658.4,657.6,2.26056521]
[1749486424759,1.424,658.4,657.59,2.26056521]
[1749486425556,1.424,658.4,657.6,2.26056521]
[1749486426961,1.424,658.4,657.63,2.26056521]
[1749486428755,1.424,658.4,657.64,2.26056521]
[1749486429157,1.424,658.4,657.66,2.26056521]
[1749486429962,1.424,658.4,657.67,2.26056521]
[1749486430963,1.424,658.4,657.65,2.26056521]
[1749486431563,1.424,658.4,657.63,2.26056521]
[1749486432261,1.424,658.4,657.64,2.26056521]
[1749486432865,1.424,658.4,657.65,2.26056521]
[1749486433066,1.424,658.4,657.64,2.26056521]
[1749486433265,1.424,658.4,657.65,2.26056521]
[1749486434664,1.424,658.4,657.66,2.26056521]
[1749486435263,1.424,658.4,657.67,2.26056521]
[1749486437268,1.424,658.4,657.68,2.26056521]
[1749486437963,1.424,658.4,657.69,2.26056521]
[1749486438163,0.26439048,658.41,657.69,2.26056521]
[1749486438363,0.26439048,658.41,657.7,2.26056521]
[1749486439467,0.26439048,658.41,657.71,2.26056521]
[1749486440262,0.26439048,658.41,657.17,3.77535433]
[1749486440263,0.26439048,658.41,657.72,2.26056521]
[1749486440869,0.26439048,658.41,657.73,2.26056521]
[1749486441265,0.26439048,658.41,657.76,2.26056521]
[1749486441563,0.26439048,658.41,657.77,2.26056521]
[1749486441764,2.017,658.4,657.77,2.26056521]
[1749486441966,1.0555423,658.39,657.76,2.26056521]
[1749486442169,1.0555423,658.39,657.77,2.26056521]
[1749486443470,1.0555423,658.39,657.76,2.26056521]
[1749486444567,1.0555423,658.39,657.77,2.26056521]
[1749486444772,1.0555423,658.39,657.78,2.26056521]
[1749486445767,1.0555423,658.39,657.79,2.26056521]
[1749486447073,1.0555423,658.39,657.72,2.26056521]
[1749486447371,2.017,658.4,657.74,2.26056521]
[1749486447571,2.017,658.4,657.76,2.26056521]
[1749486448773,2.017,658.4,657.77,2.26056521]
[1749486448974,2.017,658.4,657.79,2.26056521]
[1749486449377,2.017,658.4,657.8,2.26056521]
[1749486449573,2.017,658.4,657.79,2.26056521]
[1749486450071,2.017,658.4,657.82,2.26056521]
[1749486450470,2.017,658.4,657.81,2.26056521]
[1749486451973,2.017,658.4,657.77,2.26056521]
[1749486454177,2.017,658.4,657.78,2.26056521]
[1749486454877,2.017,658.4,657.76,2.26056521]
[1749486457279,2.017,658.4,657.77,2.26056521]
[1749486457579,2.017,658.4,657.79,2.26056521]
[1749486458278,2.017,658.4,657.78,2.26056521]
[1749486458476,2.017,658.4,657.79,2.26056521]
[1749486458775,2.017,658.4,657.77,2.26056521]
[1749486459780,2.017,658.4,657.75,2.26056521]
[1749486460680,2.017,658.4,657.74,2.26056521]
[1749486461676,2.017,658.4,657.76,2.26056521]
[1749486463380,2.017,658.4,657.54,2.26056521]
[1749486463582,2.017,658.4,657.52,2.26056521]
[1749486463880,2.017,658.4,657.53,2.26056521]
[1749486464078,2.017,658.4,657.54,2.26056521]
[1749486464381,2.017,658.4,657.67,2.26056521]
[1749486464580,2.017,658.4,657.65,2.26056521]
[1749486465081,2.017,658.4,657.82,2.26056521]
[1749486465380,2.017,658.4,656.83,4.03979805]
[1749486465381,2.017,658.4,657.81,2.26056521]
[1749486466378,2.017,658.4,657.88,2.26056521]
[1749486466879,2.017,658.4,657.89,2.26056521]
[1749486468385,2.017,658.4,657.82,2.26056521]
[1749486469287,2.017,658.4,657.8,2.26056521]
[1749486469486,2.017,658.4,657.83,2.26056521]
[1749486470684,2.017,658.4,657.82,2.26056521]
[1749486471684,2.017,658.4,657.81,2.26056521]
[1749486474490,2.017,658.4,657.82,2.26056521]
[1749486474684,2.017,658.4,657.22,3.77535433]
[1749486474685,2.017,658.4,657.81,2.26056521]
[1749486478489,2.017,658.4,657.86,2.26056521]
[1749486478986,2.017,658.4,657.87,2.26056521]
[1749486479290,2.017,658.4,657.89,2.26056521]
[1749486480790,2.017,658.4,657.9,2.26056521]
[1749486481191,2.017,658.4,657.84,2.26056521]
[1749486481391,2.017,658.4,657.8,2.26056521]
[1749486481588,2.017,658.4,657.77,2.26056521]
[1749486481988,2.017,658.4,657.76,2.26056521]
[1749486482993,2.017,658.4,657.77,2.26056521]
[1749486485292,2.017,658.4,657.76,2.26056521]
[1749486486393,2.017,658.4,657.74,2.26056521]
[1749486486700,2.017,658.4,657.72,2.26056521]
[1749486486994,2.017,658.4,657.71,2.26056521]
[1749486487493,1.060196,658.39,657.71,2.26056521]
[1749486488197,1.060196,658.39,657.7,2.26056521]
[1749486488397,1.060196,658.39,657.69,2.26056521]
[1749486488598,1.060196,658.39,657.68,2.26056521]
[1749486491596,1.060196,658.39,657.64,2.26056521]
[1749486492598,1.060196,658.39,657.65,2.26056521]
[1749486493794,1.060196,658.39,657.66,2.26056521]
[1749486496001,0.26439048,658.41,657.65,2.26056521]
[1749486496201,0.26439048,658.41,657.68,2.26056521]
[1749486497401,0.26439048,658.41,657.69,2.26056521]
[1749486498411,0.26439048,658.41,657.71,2.26056521]
[1749486499709,1.558,658.4,657.71,2.26056521]
[1749486500007,1.558,658.4,657.72,2.26056521]
[1749486501410,1.558,658.4,657.75,2.26056521]
[1749486501806,1.558,658.4,657.76,2.26056521]
[1749486502410,1.558,658.4,657.77,2.26056521]
[1749486504613,1.558,658.4,657.78,2.26056521]
[1749486504815,1.558,658.4,657.8,2.26056521]
[1749486505616,1.558,658.4,657.81,2.26056521]
[1749486505917,1.558,658.4,657.87,2.26056521]
[1749486506116,1.558,658.4,657.88,2.26056521]
[1749486506315,1.558,658.4,657.86,2.26056521]
[1749486506515,1.558,658.4,657.87,2.26056521]
[1749486506911,1.558,658.4,657.86,2.26056521]
[1749486507814,1.558,658.4,657.87,2.26056521]
[1749486508716,1.558,658.4,657.88,2.26056521]
[1749486512514,1.558,658.4,657.85,2.26056521]
[1749486513521,1.558,658.4,657.84,2.26056521]
[1749486513717,1.558,658.4,657.83,2.26056521]
[1749486513921,1.558,658.4,657.86,2.26056521]
[1749486514124,1.558,658.4,657.87,2.26056521]
[1749486515022,1.558,658.4,657.91,2.26056521]
[1749486515622,1.558,658.4,657.9,2.26056521]
[1749486517528,1.558,658.4,657.36,3.77535433]
[1749486517529,1.558,658.4,657.91,2.26056521]
[1749486519523,1.558,658.4,657.92,2.26056521]
[1749486520929,1.558,658.4,657.39,3.77535433]
[1749486520930,1.558,658.4,657.91,2.26056521]
[1749486521929,1.558,658.4,657.92,2.26056521]
[1749486522927,1.558,658.4,657.94,2.26056521]
[1749486523129,1.558,658.4,657.95,2.26056521]
[1749486526526,1.558,658.4,657.94,2.26056521]
[1749486529332,1.558,658.4,657.93,2.26056521]
[1749486529932,1.558,658.4,657.95,2.26056521]
[1749486531232,1.558,658.4,657.97,2.26056521]
[1749486531933,0.26439048,658.41,657.97,2.26056521]
[1749486532932,0.26439048,658.41,657.98,2.26056521]
[1749486535839,2.166,658.4,657.79,2.26056521]
[1749486536040,2.166,658.4,657.81,2.26056521]
[1749486536237,2.166,658.4,657.79,2.26056521]
[1749486536838,2.166,658.4,657.81,2.26056521]
[1749486537037,2.166,658.4,657.82,2.26056521]
[1749486537336,2.166,658.4,657.81,2.26056521]
[1749486537841,2.166,658.4,657.82,2.26056521]
[1749486539541,2.166,658.4,657.81,2.26056521]
[1749486540442,2.166,658.4,657.06,3.77535433]
[1749486540443,2.166,658.4,657.82,2.26056521]
[1749486540643,2.166,658.4,657.81,2.26056521]
[1749486542041,2.166,658.4,657.05,3.77535433]
[1749486542246,2.166,658.4,657.07,0.30438157]
[1749486543348,2.166,658.4,657.18,3.77535433]
[1749486543548,2.166,658.4,657.2,0.30432136]
[1749486543743,2.166,658.4,657.26,3.77535433]
[1749486544047,2.166,658.4,657.28,0.30428432]
[1749486546443,2.166,658.4,657.44,3.77535433]
[1749486546649,2.166,658.4,657.45,0.30420564]
[1749486570863,0.26442865,658.62,657.45,0.30420564]
[1749486574261,1.472,658.61,657.45,0.30420564]
[1749486576365,1.472,658.61,657.58,3.77535433]
[1749486578464,1.472,658.61,657.61,3.77535433]
[1749486579269,1.472,658.61,657.68,3.77535433]
[1749486579767,1.472,658.61,657.67,3.77535433]
[1749486580771,1.472,658.61,657.72,3.77535433]
[1749486581468,1.472,658.61,657.52,3.77535433]
[1749486581671,1.472,658.61,657.53,0.30416863]
[1749486587272,0.26442865,658.62,657.53,0.30416863]
[1749486588475,1.07332657,658.61,657.53,0.30416863]
[1749486588674,0.26442865,658.62,657.53,0.30416863]
[1749486588871,1.07332657,658.61,657.53,0.30416863]
[1749486589074,0.26442865,658.62,657.53,0.30416863]
[1749486590979,1.616,658.61,657.53,0.30416863]
[1749486603284,1.616,658.61,657.63,3.77535433]
[1749486603486,1.616,658.61,657.64,0.30411775]
[1749486605781,1.616,658.61,657.65,3.77535433]
[1749486605986,1.616,658.61,657.66,0.3041085]
[1749486611988,0.26442865,658.62,657.66,0.3041085]
[1749486613590,1.06978829,658.81,657.66,0.3041085]
[1749486613885,0.26431818,658.73,657.66,0.3041085]
[1749486615287,1.326,658.72,657.66,0.3041085]
[1749486617189,1.326,658.72,657.9,3.77535433]
[1749486617691,1.326,658.72,657.66,0.3041085]
[1749486617692,1.326,658.72,657.74,3.77535433]
[1749486618092,1.326,658.72,657.75,3.77535433]
[1749486618493,1.326,658.72,657.74,0.30407151]
[1749486619994,1.326,658.72,657.87,3.77535433]
[1749486620191,1.326,658.72,657.86,3.77535433]
[1749486620695,1.326,658.72,657.84,3.77535433]
[1749486621695,1.326,658.72,657.86,3.77535433]
[1749486622095,1.326,658.72,657.88,3.77535433]
[1749486622498,1.326,658.72,657.87,3.77535433]
[1749486623396,1.326,658.72,657.86,3.77535433]
[1749486624493,1.326,658.72,657.79,3.77535433]
[1749486624698,1.326,658.72,657.79,0.3040484]
[1749486626598,1.326,658.72,657.79,4.07940273]
[1749486627998,1.326,658.72,657.93,3.77535433]
[1749486628397,1.326,658.72,657.98,3.77535433]
[1749486629801,1.326,658.72,657.92,3.77535433]
[1749486630301,1.326,658.72,657.93,3.77535433]
[1749486630701,1.326,658.72,657.8,0.30404378]
[1749486630702,1.326,658.72,658.0,3.77535433]
[1749486631103,1.326,658.72,657.98,3.77535433]
[1749486631503,1.326,658.72,657.94,3.77535433]
[1749486632000,1.326,658.72,657.87,3.77535433]
[1749486632504,1.326,658.72,657.88,3.77535433]
[1749486633000,1.326,658.72,657.8,0.30404378]
[1749486634705,1.326,658.72,657.91,3.77535433]
[1749486635202,1.326,658.72,657.81,3.77535433]
[1749486635405,1.326,658.72,657.82,0.30403453]
[1749486650915,1.326,658.72,657.88,3.77535433]
[1749486651412,1.326,658.72,657.82,0.30403453]
[1749486652315,1.06978829,658.81,657.82,0.30403453]
[1749486654717,1.575,658.8,657.82,0.30403453]
[1749486692958,1.06978829,658.81,657.82,0.30403453]
[1749486694052,1.06978829,658.81,657.95,3.77535433]
[1749486694256,1.06978829,658.81,657.96,0.30396984]
[1749486695455,1.06978829,658.81,657.97,3.77535433]
[1749486695658,1.06978829,658.81,657.98,0.3039606]
[1749486696254,1.06978829,658.81,657.99,3.77535433]
[1749486696754,1.989,658.8,658.0,3.77535433]
[1749486697257,1.989,658.8,657.98,0.3039606]
[1749486726689,0.26428306,658.91,657.98,0.3039606]
[1749486729589,1.483,658.9,657.98,0.3039606]
[1749486729988,2.55707253,658.9,657.98,0.3039606]
[1749486730188,1.07407253,658.89,657.98,0.3039606]
[1749486730392,1.483,658.9,657.98,0.3039606]
[1749486730393,2.55707253,658.9,657.98,0.3039606]
[1749486731890,1.07407253,658.89,657.98,0.3039606]
[1749486732693,2.55707253,658.9,657.98,0.3039606]
[1749486734390,1.07407253,658.89,657.98,0.3039606]
[1749486734793,1.07407253,658.88,657.98,0.3039606]
[1749486734993,1.07407253,658.87,657.98,0.3039606]
[1749486735189,1.07407253,658.86,657.98,0.3039606]
[1749486735494,1.07407253,658.85,657.98,0.3039606]
[1749486735788,1.07407253,658.84,657.98,0.3039606]
[1749486735993,1.07407253,658.83,657.98,0.3039606]
[1749486736189,1.07407253,658.82,657.98,0.3039606]
[1749486736489,1.6084735,658.88,657.98,0.3039606]
[1749486736790,1.07407253,658.87,657.98,0.3039606]
[1749486736990,1.07407253,658.86,657.98,0.3039606]
[1749486737289,1.07407253,658.85,657.98,0.3039606]
[1749486737496,1.07407253,658.84,657.98,0.3039606]
[1749486737690,3.30285445,658.88,657.98,0.3039606]
[1749486737993,3.8372558,658.87,657.98,0.3039606]
[1749486738194,1.07407253,658.86,657.98,0.3039606]
[1749486738394,1.07407253,658.85,657.98,0.3039606]
[1749486738596,1.07407253,658.89,657.98,0.3039606]
[1749486738792,1.07407253,658.88,657.56,3.77535433]
[1749486738999,1.07407253,658.87,657.57,0.30415012]
[1749486739196,1.07407253,658.89,657.57,0.30415012]
[1749486739397,1.07407253,658.88,657.57,0.30415012]
[1749486739596,1.07407253,658.89,657.57,0.30415012]
[1749486740495,2.55707253,658.9,657.57,0.30415012]
[1749486741796,1.07407253,658.89,657.57,0.30415012]
[1749486741996,1.07407253,658.88,657.57,0.30415012]
[1749486742198,1.07407253,658.87,657.57,0.30415012]
[1749486742497,1.07407253,658.86,657.57,0.30415012]
[1749486742695,1.483,658.9,657.57,0.30415012]
[1749486742696,1.07407253,658.89,657.57,0.30415012]
[1749486742898,1.07407253,658.88,657.57,0.30415012]
[1749486743094,1.07407253,658.87,657.57,0.30415012]
[1749486743297,1.07407253,658.86,657.57,0.30415012]
[1749486743496,1.07407253,658.89,657.57,0.30415012]
[1749486743698,1.07407253,658.88,657.57,0.30415012]
[1749486743995,1.07407253,658.87,657.57,0.30415012]
[1749486744197,1.07407253,658.89,657.57,0.30415012]
[1749486744397,1.07407253,658.88,657.57,0.30415012]
[1749486744594,1.07407253,658.87,657.57,0.30415012]
[1749486744794,2.67258022,658.89,657.57,0.30415012]
[1749486744999,1.07407253,658.88,657.57,0.30415012]
[1749486745199,1.07407253,658.87,657.57,0.30415012]
[1749486745397,1.07407253,658.88,657.57,0.30415012]
[1749486745694,1.483,658.9,657.57,0.30415012]
[1749486745695,1.07407253,658.87,657.57,0.30415012]
[1749486745898,1.07407253,658.86,657.57,0.30415012]
[1749486746095,1.60574062,658.87,657.57,0.30415012]
[1749486746297,1.07407253,658.86,657.57,0.30415012]
[1749486746497,2.75615033,658.88,657.57,0.30415012]
[1749486746699,1.60574168,658.87,657.57,0.30415012]
[1749486746900,1.07407253,658.86,657.57,0.30415012]
[1749486747100,3.82257283,658.88,657.57,0.30415012]
[1749486747301,1.60573727,658.87,657.57,0.30415012]
[1749486747598,1.07407253,658.86,657.57,0.30415012]
[1749486747802,1.07407253,658.88,657.57,0.30415012]
[1749486748001,1.07407253,658.87,657.57,0.30415012]
[1749486748199,1.07407253,658.86,657.57,0.30415012]
[1749486748402,1.07407253,658.85,657.57,0.30415012]
[1749486748699,3.2880195,658.86,657.57,0.30415012]
[1749486748902,1.07407253,658.85,657.57,0.30415012]
[1749486749099,3.8189891,658.89,657.57,0.30415012]
[1749486749303,3.8189891,658.88,657.57,0.30415012]
[1749486749500,2.21366296,658.87,657.57,0.30415012]
[1749486749803,2.13825873,658.86,657.57,0.30415012]
[1749486750098,1.07356748,658.86,657.57,0.30415012]
[1749486750702,1.07356748,658.85,657.57,0.30415012]
[1749486751398,1.14827423,658.88,657.57,0.30415012]
[1749486751601,2.74290232,658.89,657.57,0.30415012]
[1749486751801,1.07357067,658.87,657.57,0.30415012]
[1749486751999,2.13778442,658.87,657.57,0.30415012]